[Event "*** SCC Grand Prix: Titled Tuesday Blitz"]
[Site "Chess.com"]
[Date "2020.06.02"]
[Round "8"]
[White "LionTheLeon_06"]
[Black "tsvet2005"]
[Result "1/2-1/2"]
[WhiteElo "2687"]
[BlackElo "2571"]
[TimeControl "180+1"]
[EndTime "11:36:24 PDT"]
[Termination "Game drawn by agreement"]

1. Nf3 {[%clk 0:03:00.9]} 1... d5 {[%clk 0:03:00.1]} 2. g3 {[%clk 0:03:00]} 2...
c6 {[%clk 0:03:00.3]} 3. Bg2 {[%clk 0:03:00.4]} 3... Bg4 {[%clk 0:03:00.8]} 4.
O-O {[%clk 0:03:00.5]} 4... Nd7 {[%clk 0:03:01]} 5. d3 {[%clk 0:03:01.1]} 5...
Ngf6 {[%clk 0:03:00.4]} 6. c4 {[%clk 0:03:01.2]} 6... e6 {[%clk 0:02:56.1]} 7.
cxd5 {[%clk 0:03:00.3]} 7... exd5 {[%clk 0:02:53.1]} 8. Nc3 {[%clk 0:03:00.3]}
8... Bd6 {[%clk 0:02:52.4]} 9. e4 {[%clk 0:02:59.5]} 9... dxe4 {[%clk
0:02:43.8]} 10. dxe4 {[%clk 0:02:59]} 10... Ne5 {[%clk 0:02:44.2]} 11. Bf4
{[%clk 0:02:26.4]} 11... Nxf3+ {[%clk 0:02:31.9]} 12. Bxf3 {[%clk 0:02:26.7]}
12... Bxf4 {[%clk 0:02:32.1]} 13. Bxg4 {[%clk 0:02:18.4]} 13... Qxd1 {[%clk
0:02:26.7]} 14. Bxd1 {[%clk 0:02:17.6]} 14... Be5 {[%clk 0:02:26.6]} 15. Bc2
{[%clk 0:02:08.8]} 15... O-O {[%clk 0:02:25.4]} 16. Rad1 {[%clk 0:02:05.4]}
16... Rad8 {[%clk 0:02:24.7]} 17. Kg2 {[%clk 0:02:03.5]} 17... g6 {[%clk
0:02:12.2]} 18. h3 {[%clk 0:02:03.3]} 18... Rfe8 {[%clk 0:02:10.4]} 19. f4
{[%clk 0:01:52.5]} 19... Rxd1 {[%clk 0:01:40.6]} 20. Nxd1 {[%clk 0:01:50.6]}
20... Bd4 {[%clk 0:01:35.4]} 21. e5 {[%clk 0:01:48.2]} 21... Nd5 {[%clk
0:01:35.1]} 22. Bb3 {[%clk 0:01:45.3]} 22... Rd8 {[%clk 0:01:34.2]} 23. Rf3
{[%clk 0:01:36.4]} 23... Bb6 {[%clk 0:01:07.6]} 24. Kf1 {[%clk 0:01:18.9]} 24...
h5 {[%clk 0:00:53.4]} 25. h4 {[%clk 0:01:07.2]} 25... Kf8 {[%clk 0:00:46.9]} 26.
Ke2 {[%clk 0:01:06.3]} 26... Ke7 {[%clk 0:00:44.4]} 27. Nc3 {[%clk 0:00:58]}
27... Nxc3+ {[%clk 0:00:43.3]} 28. Rxc3 {[%clk 0:00:54.1]} 28... Ba5 {[%clk
0:00:36.9]} 29. Rc2 {[%clk 0:00:48.6]} 29... Bb6 {[%clk 0:00:32.9]} 30. a3
{[%clk 0:00:44.7]} 30... a5 {[%clk 0:00:31.7]} 31. Bc4 {[%clk 0:00:42.9]} 31...
Rd4 {[%clk 0:00:31.1]} 32. Bd3 {[%clk 0:00:31.3]} 32... Rd5 {[%clk 0:00:30.4]}
33. Be4 {[%clk 0:00:25.5]} 33... Rd4 {[%clk 0:00:30.2]} 34. Bg2 {[%clk 0:00:23]}
34... f6 {[%clk 0:00:28.3]} 35. exf6+ {[%clk 0:00:21.5]} 35... Kxf6 {[%clk
0:00:29.2]} 36. Bf3 {[%clk 0:00:21.7]} 36... Rd8 {[%clk 0:00:28.7]} 37. Rc3
{[%clk 0:00:20.7]} 37... Re8+ {[%clk 0:00:25.4]} 38. Kf1 {[%clk 0:00:20.9]}
38... Re3 {[%clk 0:00:19.8]} 39. Rxe3 {[%clk 0:00:19.1]} 39... Bxe3 {[%clk
0:00:20.7]} 40. a4 {[%clk 0:00:19.4]} 1/2-1/2

[Event "*** SCC Grand Prix: Titled Tuesday Blitz"]
[Site "Chess.com"]
[Date "2020.06.02"]
[Round "8"]
[White "umngqusho"]
[Black "szefru"]
[Result "1-0"]
[WhiteElo "2500"]
[BlackElo "2150"]
[TimeControl "180+1"]
[EndTime "11:36:26 PDT"]
[Termination "umngqusho won by resignation"]

1. e4 {[%clk 0:02:59.3]} 1... Nf6 {[%clk 0:02:59.5]} 2. e5 {[%clk 0:02:58.4]}
2... Nd5 {[%clk 0:02:59.5]} 3. d4 {[%clk 0:02:58]} 3... g6 {[%clk 0:02:59]} 4.
c4 {[%clk 0:02:56.7]} 4... Nb6 {[%clk 0:02:58.7]} 5. f4 {[%clk 0:02:56.2]} 5...
Bg7 {[%clk 0:02:58.5]} 6. Nc3 {[%clk 0:02:56.3]} 6... d6 {[%clk 0:02:58.7]} 7.
Be3 {[%clk 0:02:54.7]} 7... O-O {[%clk 0:02:58.1]} 8. c5 {[%clk 0:02:54.2]} 8...
dxc5 {[%clk 0:02:55]} 9. dxc5 {[%clk 0:02:53.7]} 9... Qxd1+ {[%clk 0:02:53.9]}
10. Rxd1 {[%clk 0:02:52.6]} 10... N6d7 {[%clk 0:02:54.3]} 11. Nd5 {[%clk
0:02:49.3]} 11... Nc6 {[%clk 0:02:37.5]} 12. Nxc7 {[%clk 0:02:48]} 12... Rb8
{[%clk 0:02:37.3]} 13. Nf3 {[%clk 0:02:46.8]} 13... e6 {[%clk 0:02:22.9]} 14.
Nb5 {[%clk 0:02:33.6]} 14... b6 {[%clk 0:02:16.6]} 15. cxb6 {[%clk 0:02:30.1]}
15... Nxb6 {[%clk 0:02:17.5]} 16. Bc5 {[%clk 0:02:23.7]} 16... Rd8 {[%clk
0:02:08.6]} 17. Rxd8+ {[%clk 0:02:12.1]} 17... Nxd8 {[%clk 0:02:09.5]} 18. Nxa7
{[%clk 0:02:11.7]} 18... Na4 {[%clk 0:01:55.5]} 19. Bd4 {[%clk 0:02:08.9]} 19...
Nxb2 {[%clk 0:01:51.1]} 20. Nxc8 {[%clk 0:02:03.5]} 20... Rxc8 {[%clk
0:01:24.7]} 21. Bxb2 {[%clk 0:02:00.6]} 21... Rc2 {[%clk 0:01:25.3]} 22. Bd4
{[%clk 0:01:55.9]} 22... Rxa2 {[%clk 0:01:25.5]} 23. Be2 {[%clk 0:01:45.7]}
23... Nc6 {[%clk 0:01:25.4]} 24. Bc3 {[%clk 0:01:40.1]} 24... Bh6 {[%clk
0:01:19.9]} 25. g3 {[%clk 0:01:36.2]} 25... Bf8 {[%clk 0:01:18.4]} 26. Nd4
{[%clk 0:01:32.1]} 26... Nxd4 {[%clk 0:00:55.5]} 27. Bxd4 {[%clk 0:01:29.9]}
27... Ra4 {[%clk 0:00:55.5]} 28. Be3 {[%clk 0:01:22.7]} 28... Ra1+ {[%clk
0:00:47.7]} 29. Bd1 {[%clk 0:01:20.4]} 29... Bb4+ {[%clk 0:00:47]} 30. Kf2
{[%clk 0:01:19.6]} 30... Kg7 {[%clk 0:00:43.2]} 31. Bf3 {[%clk 0:01:18.3]} 31...
Ra2+ {[%clk 0:00:42.7]} 32. Be2 {[%clk 0:01:17.6]} 32... h5 {[%clk 0:00:40.2]}
33. h3 {[%clk 0:01:15.6]} 33... Ba5 {[%clk 0:00:32.8]} 34. g4 {[%clk 0:01:14.1]}
34... hxg4 {[%clk 0:00:29.8]} 35. hxg4 {[%clk 0:01:13.8]} 35... f6 {[%clk
0:00:29.4]} 36. exf6+ {[%clk 0:01:11.1]} 36... Kxf6 {[%clk 0:00:30.3]} 37. Bd4+
{[%clk 0:01:10.7]} 37... Ke7 {[%clk 0:00:29.5]} 38. Bc5+ {[%clk 0:01:03.1]}
38... Kf6 {[%clk 0:00:27.4]} 39. Kf3 {[%clk 0:00:55.4]} 39... Ra4 {[%clk
0:00:18.7]} 40. Rh7 {[%clk 0:00:49.5]} 40... g5 {[%clk 0:00:18.7]} 41. fxg5+
{[%clk 0:00:46.5]} 41... Kxg5 {[%clk 0:00:18.9]} 42. Be7+ {[%clk 0:00:41.1]}
42... Kg6 {[%clk 0:00:18.7]} 43. Bd3+ {[%clk 0:00:41.1]} 1-0

[Event "*** SCC Grand Prix: Titled Tuesday Blitz"]
[Site "Chess.com"]
[Date "2020.06.02"]
[Round "8"]
[White "ErikRonka"]
[Black "Bhagya_2312"]
[Result "1-0"]
[WhiteElo "2397"]
[BlackElo "2159"]
[TimeControl "180+1"]
[EndTime "11:36:26 PDT"]
[Termination "ErikRonka won on time"]

1. d4 {[%clk 0:03:00.9]} 1... d5 {[%clk 0:02:58.8]} 2. e4 {[%clk 0:03:01]} 2...
c6 {[%clk 0:02:57]} 3. Nc3 {[%clk 0:03:00.6]} 3... dxe4 {[%clk 0:02:55.9]} 4. f3
{[%clk 0:03:00.8]} 4... Nf6 {[%clk 0:02:44]} 5. Bc4 {[%clk 0:02:59.4]} 5... exf3
{[%clk 0:02:07.8]} 6. Nxf3 {[%clk 0:02:58.4]} 6... e6 {[%clk 0:02:08]} 7. O-O
{[%clk 0:02:52]} 7... Be7 {[%clk 0:02:05.6]} 8. Bg5 {[%clk 0:02:36.5]} 8... Nbd7
{[%clk 0:02:04.1]} 9. Qe2 {[%clk 0:02:36.3]} 9... O-O {[%clk 0:01:45.8]} 10. Kh1
{[%clk 0:02:27.9]} 10... a6 {[%clk 0:01:39.1]} 11. Ne5 {[%clk 0:02:19.8]} 11...
Nb6 {[%clk 0:01:35.1]} 12. Bd3 {[%clk 0:02:11.4]} 12... Qxd4 {[%clk 0:01:17.8]}
13. Rad1 {[%clk 0:01:49.6]} 13... Qb4 {[%clk 0:01:16.5]} 14. Rf4 {[%clk
0:01:35.2]} 14... Qxb2 {[%clk 0:01:10.1]} 15. Bxf6 {[%clk 0:01:34.9]} 15... Bxf6
{[%clk 0:01:08.4]} 16. Rxf6 {[%clk 0:01:34.5]} 16... Qxc3 {[%clk 0:00:49]} 17.
Rxf7 {[%clk 0:00:29.4]} 17... Rxf7 {[%clk 0:00:42.4]} 18. Qh5 {[%clk 0:00:22.7]}
18... g6 {[%clk 0:00:19.9]} 19. Bxg6 {[%clk 0:00:22.3]} 19... Re7 {[%clk
0:00:06]} 20. Rd8+ {[%clk 0:00:19.2]} 20... Kg7 {[%clk 0:00:05.8]} 21. Qxh7+
{[%clk 0:00:16.7]} 21... Kf6 {[%clk 0:00:06.1]} 22. Rf8+ {[%clk 0:00:11.9]}
22... Kxe5 {[%clk 0:00:05.8]} 23. Qh8+ {[%clk 0:00:11]} 23... Kd6 {[%clk
0:00:05.6]} 24. Qxc3 {[%clk 0:00:11.9]} 24... Nd5 {[%clk 0:00:05.1]} 25. Qg3+
{[%clk 0:00:11.6]} 25... Kc5 {[%clk 0:00:04.5]} 26. Rf1 {[%clk 0:00:09.5]} 26...
Kb6 {[%clk 0:00:03.8]} 27. Qf2+ {[%clk 0:00:09.3]} 27... Kc7 {[%clk 0:00:03.3]}
28. c4 {[%clk 0:00:10.2]} 1-0

[Event "*** SCC Grand Prix: Titled Tuesday Blitz"]
[Site "Chess.com"]
[Date "2020.06.02"]
[Round "8"]
[White "Sweafty"]
[Black "Ave_Mariia"]
[Result "0-1"]
[WhiteElo "2492"]
[BlackElo "2325"]
[TimeControl "180+1"]
[EndTime "11:36:27 PDT"]
[Termination "Ave_Mariia won on time"]

1. Nf3 {[%clk 0:02:47]} 1... d6 {[%clk 0:02:56.4]} 2. d4 {[%clk 0:02:46.9]} 2...
Nf6 {[%clk 0:02:56.1]} 3. Bf4 {[%clk 0:02:46.5]} 3... g6 {[%clk 0:02:55.2]} 4.
g3 {[%clk 0:02:45.8]} 4... Bg7 {[%clk 0:02:55.5]} 5. Qd2 {[%clk 0:02:46.2]} 5...
c5 {[%clk 0:02:36.8]} 6. c3 {[%clk 0:02:40.9]} 6... Ne4 {[%clk 0:02:34.1]} 7.
Qc1 {[%clk 0:02:37.4]} 7... Nc6 {[%clk 0:02:11.6]} 8. dxc5 {[%clk 0:02:20.6]}
8... dxc5 {[%clk 0:02:07.7]} 9. Bg2 {[%clk 0:02:20.3]} 9... O-O {[%clk
0:02:00.5]} 10. Bh6 {[%clk 0:02:16.4]} 10... Qb6 {[%clk 0:01:43.1]} 11. Bxg7
{[%clk 0:02:14.7]} 11... Kxg7 {[%clk 0:01:44]} 12. Nbd2 {[%clk 0:02:14.9]} 12...
Nxd2 {[%clk 0:01:34.8]} 13. Nxd2 {[%clk 0:02:14.1]} 13... Be6 {[%clk 0:01:29.1]}
14. h4 {[%clk 0:02:12.9]} 14... h5 {[%clk 0:01:27.9]} 15. O-O {[%clk 0:02:11.1]}
15... c4 {[%clk 0:01:21.2]} 16. Nf3 {[%clk 0:02:10.7]} 16... Rfd8 {[%clk
0:01:13.8]} 17. Ng5 {[%clk 0:02:09.3]} 17... Bg4 {[%clk 0:01:11.4]} 18. Qf4
{[%clk 0:02:00.2]} 18... f6 {[%clk 0:01:10.5]} 19. Nf3 {[%clk 0:01:46]} 19...
Qxb2 {[%clk 0:01:04.4]} 20. Qxc4 {[%clk 0:01:26.4]} 20... Rac8 {[%clk
0:00:24.4]} 21. Rab1 {[%clk 0:01:22.4]} 21... Qa3 {[%clk 0:00:23.9]} 22. Qf4
{[%clk 0:00:58]} 22... Qxc3 {[%clk 0:00:21.8]} 23. Rxb7 {[%clk 0:00:54.7]} 23...
Re8 {[%clk 0:00:15.3]} 24. Rc1 {[%clk 0:00:47.6]} 24... Qa5 {[%clk 0:00:14.7]}
25. Nh2 {[%clk 0:00:44.6]} 25... Ne5 {[%clk 0:00:14.3]} 26. Rxc8 {[%clk
0:00:35.9]} 26... Qe1+ {[%clk 0:00:14.3]} 27. Bf1 {[%clk 0:00:31.9]} 27... Bxc8
{[%clk 0:00:11.8]} 28. Rxa7 {[%clk 0:00:32.1]} 28... Bh3 {[%clk 0:00:11]} 29.
Qa4 {[%clk 0:00:26.3]} 29... Ng4 {[%clk 0:00:08.9]} 0-1

[Event "*** SCC Grand Prix: Titled Tuesday Blitz"]
[Site "Chess.com"]
[Date "2020.06.02"]
[Round "8"]
[White "Kildepiotr"]
[Black "Kopytkin"]
[Result "1-0"]
[WhiteElo "2462"]
[BlackElo "2311"]
[TimeControl "180+1"]
[EndTime "11:36:27 PDT"]
[Termination "Kildepiotr won by checkmate"]

1. Nf3 {[%clk 0:03:00.9]} 1... d5 {[%clk 0:02:58.4]} 2. g3 {[%clk 0:03:01.1]}
2... c5 {[%clk 0:02:58.4]} 3. Bg2 {[%clk 0:03:01.5]} 3... Nf6 {[%clk 0:02:57.6]}
4. O-O {[%clk 0:03:01.8]} 4... Nc6 {[%clk 0:02:57.7]} 5. d3 {[%clk 0:03:02.3]}
5... Bg4 {[%clk 0:02:57.1]} 6. Nbd2 {[%clk 0:03:02.8]} 6... e6 {[%clk
0:02:57.5]} 7. e4 {[%clk 0:03:02.9]} 7... Be7 {[%clk 0:02:57.4]} 8. h3 {[%clk
0:03:03]} 8... Bh5 {[%clk 0:02:57.2]} 9. Qe1 {[%clk 0:03:00.8]} 9... O-O {[%clk
0:02:52.3]} 10. c3 {[%clk 0:02:56.1]} 10... Qc7 {[%clk 0:02:42.3]} 11. Nh2
{[%clk 0:02:44.6]} 11... dxe4 {[%clk 0:02:30.4]} 12. Nxe4 {[%clk 0:02:39]} 12...
Nxe4 {[%clk 0:02:27.7]} 13. dxe4 {[%clk 0:02:38.7]} 13... e5 {[%clk 0:01:53]}
14. Bf3 {[%clk 0:02:33.9]} 14... Bg6 {[%clk 0:01:50.2]} 15. Be3 {[%clk
0:02:28.7]} 15... c4 {[%clk 0:01:47.1]} 16. Qe2 {[%clk 0:02:26.1]} 16... b5
{[%clk 0:01:44.6]} 17. b3 {[%clk 0:02:24.8]} 17... Na5 {[%clk 0:01:37.6]} 18. b4
{[%clk 0:02:24.9]} 18... Nc6 {[%clk 0:01:37.7]} 19. a4 {[%clk 0:02:22.5]} 19...
a6 {[%clk 0:01:36.1]} 20. Rfd1 {[%clk 0:02:10.6]} 20... Rfd8 {[%clk 0:01:34.4]}
21. Rxd8+ {[%clk 0:02:07.7]} 21... Bxd8 {[%clk 0:01:27.3]} 22. axb5 {[%clk
0:02:05.5]} 22... Nb8 {[%clk 0:01:15.2]} 23. Bc5 {[%clk 0:01:52.5]} 23... Qb7
{[%clk 0:01:08.6]} 24. bxa6 {[%clk 0:01:48.6]} 24... Nxa6 {[%clk 0:01:06.8]} 25.
Qxc4 {[%clk 0:01:43.5]} 25... Nxc5 {[%clk 0:01:00.9]} 26. Rxa8 {[%clk
0:01:42.6]} 26... Qxa8 {[%clk 0:01:01]} 27. Qxc5 {[%clk 0:01:37.7]} 27... Qb8
{[%clk 0:00:42.5]} 28. Ng4 {[%clk 0:01:30.1]} 28... f6 {[%clk 0:00:40.5]} 29.
Be2 {[%clk 0:01:19]} 29... Bb6 {[%clk 0:00:37.6]} 30. Bc4+ {[%clk 0:01:18.4]}
30... Kh8 {[%clk 0:00:37.7]} 31. Qc6 {[%clk 0:01:12.4]} 31... Qd8 {[%clk
0:00:25.8]} 32. Qd5 {[%clk 0:01:04.3]} 32... Qb8 {[%clk 0:00:13.2]} 33. Nh2
{[%clk 0:01:01.6]} 33... Bh5 {[%clk 0:00:11.8]} 34. Kg2 {[%clk 0:00:55.4]} 34...
h6 {[%clk 0:00:10]} 35. Nf1 {[%clk 0:00:52.1]} 35... Bg6 {[%clk 0:00:07.8]} 36.
Nd2 {[%clk 0:00:50.6]} 36... Bh7 {[%clk 0:00:07.3]} 37. Nb3 {[%clk 0:00:48.3]}
37... Ba7 {[%clk 0:00:07.2]} 38. Nc5 {[%clk 0:00:46.4]} 38... Bg6 {[%clk
0:00:05.3]} 39. Nd7 {[%clk 0:00:39.4]} 39... Qc7 {[%clk 0:00:03.1]} 40. Qg8#
{[%clk 0:00:38.5]} 1-0

[Event "*** SCC Grand Prix: Titled Tuesday Blitz"]
[Site "Chess.com"]
[Date "2020.06.02"]
[Round "8"]
[White "Mikhal867"]
[Black "elohunter1999"]
[Result "1-0"]
[WhiteElo "2321"]
[BlackElo "2501"]
[TimeControl "180+1"]
[EndTime "11:36:28 PDT"]
[Termination "Mikhal867 won by resignation"]

1. c4 {[%clk 0:03:00.9]} 1... Nf6 {[%clk 0:02:59.3]} 2. d4 {[%clk 0:02:59.2]}
2... e6 {[%clk 0:02:57.6]} 3. f3 {[%clk 0:02:58.2]} 3... d5 {[%clk 0:02:53]} 4.
Nc3 {[%clk 0:02:57.5]} 4... c5 {[%clk 0:02:43.2]} 5. cxd5 {[%clk 0:02:50.7]}
5... cxd4 {[%clk 0:02:43.2]} 6. Qxd4 {[%clk 0:02:47.7]} 6... Nc6 {[%clk
0:02:43]} 7. Qa4 {[%clk 0:02:46.8]} 7... exd5 {[%clk 0:02:42]} 8. Bg5 {[%clk
0:02:46.2]} 8... d4 {[%clk 0:02:28.2]} 9. O-O-O {[%clk 0:02:43.7]} 9... h6
{[%clk 0:02:16.8]} 10. Bxf6 {[%clk 0:02:40.1]} 10... Qxf6 {[%clk 0:02:16.4]} 11.
Ne4 {[%clk 0:02:37.7]} 11... Qf4+ {[%clk 0:02:12.7]} 12. e3 {[%clk 0:02:34.1]}
12... Qxe3+ {[%clk 0:02:03.3]} 13. Kb1 {[%clk 0:02:33.7]} 13... Bf5 {[%clk
0:02:00.7]} 14. Bb5 {[%clk 0:02:29.3]} 14... Rc8 {[%clk 0:01:26.9]} 15. Ne2
{[%clk 0:02:16.6]} 15... Bxe4+ {[%clk 0:01:17.6]} 16. fxe4 {[%clk 0:02:16.2]}
16... Bc5 {[%clk 0:01:18.1]} 17. Nxd4 {[%clk 0:02:08.6]} 17... Qxe4+ {[%clk
0:01:01.1]} 18. Ka1 {[%clk 0:02:07.6]} 18... O-O {[%clk 0:00:53.6]} 19. Nxc6
{[%clk 0:02:05.5]} 19... Qxa4 {[%clk 0:00:52.8]} 20. Bxa4 {[%clk 0:02:04.9]}
20... bxc6 {[%clk 0:00:53]} 21. Rc1 {[%clk 0:02:04.8]} 21... Bb6 {[%clk
0:00:47.8]} 22. Rxc6 {[%clk 0:02:01.3]} 22... Rxc6 {[%clk 0:00:47.6]} 23. Bxc6
{[%clk 0:02:01]} 23... Rd8 {[%clk 0:00:48]} 24. Bf3 {[%clk 0:01:58]} 24... Rd2
{[%clk 0:00:47.4]} 25. Rd1 {[%clk 0:01:57.5]} 25... Rf2 {[%clk 0:00:37]} 26. a3
{[%clk 0:01:56.9]} 26... g6 {[%clk 0:00:35.8]} 27. Ka2 {[%clk 0:01:55.7]} 27...
Kg7 {[%clk 0:00:32.3]} 28. Kb3 {[%clk 0:01:55.3]} 28... g5 {[%clk 0:00:27]} 29.
Kc3 {[%clk 0:01:48.9]} 29... g4 {[%clk 0:00:22]} 30. Bxg4 {[%clk 0:01:42.2]}
30... Rxg2 {[%clk 0:00:17.1]} 31. h3 {[%clk 0:01:42]} 31... Kg6 {[%clk
0:00:15.3]} 32. Rd5 {[%clk 0:01:38.2]} 32... Bd8 {[%clk 0:00:14.7]} 33. Rxd8
{[%clk 0:01:32.4]} 33... h5 {[%clk 0:00:12.5]} 34. Rd6+ {[%clk 0:01:27]} 34...
f6 {[%clk 0:00:11.5]} 35. Bc8 {[%clk 0:01:25]} 35... Rg3+ {[%clk 0:00:11]} 36.
Kc4 {[%clk 0:01:24.6]} 36... Kg5 {[%clk 0:00:10.9]} 37. Rd5+ {[%clk 0:01:22.2]}
37... Kh4 {[%clk 0:00:11]} 38. Rd4+ {[%clk 0:01:19.9]} 38... Kg5 {[%clk
0:00:10.8]} 39. a4 {[%clk 0:01:18.3]} 39... f5 {[%clk 0:00:10.6]} 40. Rd5 {[%clk
0:01:14.8]} 40... Rf3 {[%clk 0:00:09.3]} 41. Rxf5+ {[%clk 0:01:14.2]} 41... Rxf5
{[%clk 0:00:09.1]} 42. Bxf5 {[%clk 0:01:14]} 42... Kxf5 {[%clk 0:00:10]} 43. b4
{[%clk 0:01:13.7]} 43... Kg5 {[%clk 0:00:09.9]} 44. b5 {[%clk 0:01:13.5]} 44...
Kh4 {[%clk 0:00:10.5]} 45. a5 {[%clk 0:01:13.6]} 45... Kxh3 {[%clk 0:00:11.2]}
46. b6 {[%clk 0:01:13.5]} 46... axb6 {[%clk 0:00:12.1]} 47. a6 {[%clk
0:01:04.6]} 47... b5+ {[%clk 0:00:11]} 48. Kxb5 {[%clk 0:01:04.2]} 48... h4
{[%clk 0:00:09.4]} 49. a7 {[%clk 0:01:03.6]} 49... Kh2 {[%clk 0:00:08.2]} 50.
a8=Q {[%clk 0:01:01.5]} 50... h3 {[%clk 0:00:08.5]} 51. Qf3 {[%clk 0:01:00]} 1-0

[Event "*** SCC Grand Prix: Titled Tuesday Blitz"]
[Site "Chess.com"]
[Date "2020.06.02"]
[Round "8"]
[White "superchess02"]
[Black "PlayChessSimple"]
[Result "1-0"]
[WhiteElo "2708"]
[BlackElo "2527"]
[TimeControl "180+1"]
[EndTime "11:36:29 PDT"]
[Termination "superchess02 won on time"]

1. e4 {[%clk 0:02:58.9]} 1... e6 {[%clk 0:02:59.9]} 2. d4 {[%clk 0:02:56.8]}
2... d5 {[%clk 0:02:59.9]} 3. Nc3 {[%clk 0:02:57.4]} 3... Nf6 {[%clk 0:02:59.1]}
4. e5 {[%clk 0:02:57]} 4... Nfd7 {[%clk 0:02:58.7]} 5. f4 {[%clk 0:02:57.7]}
5... c5 {[%clk 0:02:59.2]} 6. Nf3 {[%clk 0:02:58.3]} 6... Nc6 {[%clk 0:02:59.8]}
7. Be3 {[%clk 0:02:58.5]} 7... Qb6 {[%clk 0:03:00.4]} 8. Na4 {[%clk 0:02:48]}
8... Qa5+ {[%clk 0:03:00.2]} 9. c3 {[%clk 0:02:48.6]} 9... cxd4 {[%clk
0:03:00.7]} 10. b4 {[%clk 0:02:47.6]} 10... Qc7 {[%clk 0:03:00.8]} 11. Nxd4
{[%clk 0:02:45.5]} 11... a6 {[%clk 0:03:01.4]} 12. Rc1 {[%clk 0:02:43]} 12... b5
{[%clk 0:03:00.3]} 13. Nb2 {[%clk 0:02:43]} 13... Nb6 {[%clk 0:03:00.4]} 14. Be2
{[%clk 0:02:40.1]} 14... Be7 {[%clk 0:02:53.2]} 15. O-O {[%clk 0:02:39.5]} 15...
O-O {[%clk 0:02:53.3]} 16. f5 {[%clk 0:02:38.1]} 16... Nxe5 {[%clk 0:02:39.8]}
17. Bf4 {[%clk 0:02:33.5]} 17... Bf6 {[%clk 0:02:31.4]} 18. Nd3 {[%clk
0:02:31.2]} 18... Nbc4 {[%clk 0:02:31.3]} 19. g4 {[%clk 0:02:04.7]} 19... Qe7
{[%clk 0:02:15.5]} 20. g5 {[%clk 0:02:00.3]} 20... Bxg5 {[%clk 0:02:09.6]} 21.
Bxe5 {[%clk 0:01:55.1]} 21... Bxc1 {[%clk 0:01:59.2]} 22. Qxc1 {[%clk
0:01:54.8]} 22... exf5 {[%clk 0:01:58]} 23. Bf4 {[%clk 0:01:46.1]} 23... Re8
{[%clk 0:01:42.3]} 24. Bf3 {[%clk 0:01:44.7]} 24... Be6 {[%clk 0:01:35.3]} 25.
Kh1 {[%clk 0:01:42.4]} 25... Rac8 {[%clk 0:01:34.2]} 26. Rg1 {[%clk 0:01:42.3]}
26... Kh8 {[%clk 0:01:29.4]} 27. Qf1 {[%clk 0:01:42.1]} 27... Rg8 {[%clk
0:01:15.5]} 28. Qh3 {[%clk 0:01:40.2]} 28... g5 {[%clk 0:01:10.6]} 29. Be5+
{[%clk 0:00:58.4]} 29... f6 {[%clk 0:00:56.3]} 30. Nxe6 {[%clk 0:00:50.8]} 30...
fxe5 {[%clk 0:00:28.7]} 31. Bxd5 {[%clk 0:00:43.8]} 31... g4 {[%clk 0:00:23.6]}
32. Qh5 {[%clk 0:00:40.6]} 32... Ne3 {[%clk 0:00:20.3]} 33. Nxe5 {[%clk
0:00:38.3]} 33... Rcf8 {[%clk 0:00:04.7]} 34. Nxf8 {[%clk 0:00:26.3]} 1-0

[Event "*** SCC Grand Prix: Titled Tuesday Blitz"]
[Site "Chess.com"]
[Date "2020.06.02"]
[Round "8"]
[White "ChainsOfFantasia"]
[Black "ChristopherYoo"]
[Result "0-1"]
[WhiteElo "2489"]
[BlackElo "2807"]
[TimeControl "180+1"]
[EndTime "11:36:30 PDT"]
[Termination "ChristopherYoo won by resignation"]

1. c4 {[%clk 0:03:00.9]} 1... Nf6 {[%clk 0:02:59.5]} 2. Nc3 {[%clk 0:02:59.6]}
2... g6 {[%clk 0:02:59.3]} 3. e4 {[%clk 0:02:59.4]} 3... e5 {[%clk 0:02:58.9]}
4. g3 {[%clk 0:02:58.1]} 4... Bg7 {[%clk 0:02:58.5]} 5. Bg2 {[%clk 0:02:58.5]}
5... O-O {[%clk 0:02:57.6]} 6. Nge2 {[%clk 0:02:59]} 6... Re8 {[%clk 0:02:46.9]}
7. O-O {[%clk 0:02:58.7]} 7... Na6 {[%clk 0:02:46.9]} 8. d3 {[%clk 0:02:57.4]}
8... c6 {[%clk 0:02:45.5]} 9. f4 {[%clk 0:02:57.3]} 9... exf4 {[%clk 0:02:43.9]}
10. Nxf4 {[%clk 0:02:48.5]} 10... Nc7 {[%clk 0:02:01.6]} 11. Qf3 {[%clk
0:02:23.6]} 11... d6 {[%clk 0:01:56.6]} 12. h3 {[%clk 0:02:17.8]} 12... a6
{[%clk 0:01:47.7]} 13. Bd2 {[%clk 0:02:15.6]} 13... b5 {[%clk 0:01:46.5]} 14. b3
{[%clk 0:02:15.1]} 14... Bb7 {[%clk 0:01:44.3]} 15. Rae1 {[%clk 0:02:13.2]}
15... b4 {[%clk 0:01:10.9]} 16. Na4 {[%clk 0:02:11.3]} 16... c5 {[%clk
0:01:11.2]} 17. Nb6 {[%clk 0:02:00.8]} 17... Rb8 {[%clk 0:01:10.2]} 18. g4
{[%clk 0:02:00.8]} 18... Nd7 {[%clk 0:01:01.5]} 19. Nbd5 {[%clk 0:01:57.2]}
19... Ne5 {[%clk 0:01:00.4]} 20. Qg3 {[%clk 0:01:53.8]} 20... Nxd5 {[%clk
0:01:00.5]} 21. exd5 {[%clk 0:01:43.1]} 21... Bf6 {[%clk 0:00:58.7]} 22. Be4
{[%clk 0:01:38.2]} 22... Bh4 {[%clk 0:00:57.3]} 23. Qg2 {[%clk 0:01:37.7]} 23...
Bxe1 {[%clk 0:00:57.3]} 24. Rxe1 {[%clk 0:01:31.9]} 24... Bc8 {[%clk 0:00:57.2]}
25. Qg3 {[%clk 0:01:26.5]} 25... Bd7 {[%clk 0:00:55.1]} 26. Rf1 {[%clk
0:01:22.9]} 26... a5 {[%clk 0:00:50.4]} 27. h4 {[%clk 0:01:21.8]} 27... a4
{[%clk 0:00:50.3]} 28. g5 {[%clk 0:01:17.4]} 28... Ra8 {[%clk 0:00:47.8]} 29. h5
{[%clk 0:01:08.4]} 29... axb3 {[%clk 0:00:47.6]} 30. axb3 {[%clk 0:01:09]} 30...
Ra2 {[%clk 0:00:47.9]} 31. Be3 {[%clk 0:01:05.1]} 31... Ng4 {[%clk 0:00:43.7]}
32. hxg6 {[%clk 0:00:48.2]} 32... hxg6 {[%clk 0:00:42.5]} 33. Nxg6 {[%clk
0:00:36.5]} 33... fxg6 {[%clk 0:00:37.1]} 34. Qxd6 {[%clk 0:00:35.8]} 34... Bf5
{[%clk 0:00:36.9]} 35. Qxc5 {[%clk 0:00:26.9]} 35... Bxe4 {[%clk 0:00:29.5]} 36.
dxe4 {[%clk 0:00:23.8]} 36... Nxe3 {[%clk 0:00:24.5]} 37. Qxe3 {[%clk
0:00:23.5]} 37... Qc7 {[%clk 0:00:22.8]} 38. Rf4 {[%clk 0:00:18.9]} 38... Qe5
{[%clk 0:00:20.4]} 39. c5 {[%clk 0:00:12.7]} 39... Qxg5+ {[%clk 0:00:19.3]} 40.
Kf1 {[%clk 0:00:13]} 40... Qg2+ {[%clk 0:00:19.3]} 41. Ke1 {[%clk 0:00:13.5]}
41... Ra1+ {[%clk 0:00:20.2]} 0-1